fUSD/lending_fUSD_20260622
["ID","MTS","AMOUNT","RATE_DAILY","PERIOD"]
[426080144,1782139839000,-33318.9848,0.0001212,2]
[426080146,1782139839000,-8588.7871,0.0001212,2]
[426080138,1782139839000,-250.0,0.00012097,2]
[426080142,1782139839000,-151.0,0.0001212,2]
[426080140,1782139839000,-20098.80525771,0.00012112,2]
[426080150,1782139839000,-294.89508092,0.00012202,2]
[426080148,1782139839000,-2000.0,0.0001212,2]
[426080156,1782139839000,-146227.1858559,0.00012212,2]
[426080152,1782139839000,-319.1327312,0.00012209,2]
[426080158,1782139839000,-6423.6580721,0.00012212,2]
[426080214,1782139839000,-500.0,0.00012212,2]
[426080257,1782139839000,-500.0,0.00012212,2]
[426080220,1782139839000,-500.0,0.00012212,2]
[426080266,1782139839000,-500.0,0.00012212,2]
[426080268,1782139839000,-500.0,0.00012212,2]
[426080264,1782139839000,-500.0,0.00012212,2]
[426080275,1782139839000,-500.0,0.00012212,2]
[426080281,1782139839000,-500.0,0.00012212,2]
[426080283,1782139839000,-500.0,0.00012212,2]
[426080276,1782139839000,-500.0,0.00012212,2]
[426080274,1782139839000,-500.0,0.00012212,2]
[426080278,1782139839000,-500.0,0.00012212,2]
[426080273,1782139839000,-500.0,0.00012212,2]
[426080279,1782139839000,-500.0,0.00012212,2]
[426080269,1782139839000,-500.0,0.00012212,2]
[426080277,1782139839000,-500.0,0.00012212,2]
[426080280,1782139839000,-500.0,0.00012212,2]
[426080285,1782139839000,-500.0,0.00012212,2]
[426080295,1782139839000,-500.0,0.00012212,2]
[426080296,1782139839000,-500.0,0.00012212,2]
[426080297,1782139839000,-500.0,0.00012212,2]
[426080289,1782139839000,-500.0,0.00012212,2]
[426080284,1782139839000,-500.0,0.00012212,2]
[426080287,1782139839000,-500.0,0.00012212,2]
[426080291,1782139839000,-500.0,0.00012212,2]
[426080293,1782139839000,-500.0,0.00012212,2]
[426080218,1782139839000,-500.0,0.00012212,2]
[426080282,1782139839000,-500.0,0.00012212,2]
[426080265,1782139839000,-500.0,0.00012212,2]
[426080292,1782139839000,-500.0,0.00012212,2]
[426080263,1782139839000,-500.0,0.00012212,2]
[426080262,1782139839000,-500.0,0.00012212,2]
[426080222,1782139839000,-500.0,0.00012212,2]
[426080224,1782139839000,-500.0,0.00012212,2]
[426080231,1782139839000,-500.0,0.00012212,2]
[426080235,1782139839000,-500.0,0.00012212,2]
[426080229,1782139839000,-500.0,0.00012212,2]
[426080233,1782139839000,-500.0,0.00012212,2]
[426080237,1782139839000,-500.0,0.00012212,2]
[426080241,1782139839000,-500.0,0.00012212,2]
[426080239,1782139839000,-500.0,0.00012212,2]
[426080243,1782139839000,-500.0,0.00012212,2]
[426080253,1782139839000,-500.0,0.00012212,2]
[426080227,1782139839000,-500.0,0.00012212,2]
[426080294,1782139839000,-500.0,0.00012212,2]
[426080256,1782139839000,-500.0,0.00012212,2]
[426080271,1782139839000,-500.0,0.00012212,2]
[426080260,1782139839000,-500.0,0.00012212,2]
[426080261,1782139839000,-500.0,0.00012212,2]
[426080259,1782139839000,-500.0,0.00012212,2]
[426080267,1782139839000,-500.0,0.00012212,2]
[426080247,1782139839000,-500.0,0.00012212,2]
[426080245,1782139839000,-500.0,0.00012212,2]
[426080251,1782139839000,-500.0,0.00012212,2]
[426080258,1782139839000,-500.0,0.00012212,2]
[426080255,1782139839000,-500.0,0.00012212,2]
[426080249,1782139839000,-500.0,0.00012212,2]
[426080329,1782139840000,-613.71702423,0.00012505,2]
[426080323,1782139840000,-151.80211929,0.00012329,2]
[426080326,1782139840000,-1320.55041628,0.00012464,7]
[426080330,1782139840000,-1619.60893689,0.00012505,2]
[426080331,1782139840000,-2857.18214305,0.00012505,2]
[426080327,1782139840000,-157.9873146,0.00012503,2]
[426080328,1782139840000,-150.0,0.00012505,2]
[426080333,1782139840000,-5783.1048,0.00012505,2]
[426080332,1782139840000,-4274.17360917,0.00012505,2]
[426080325,1782139840000,-153.54,0.00012352,2]
[426080337,1782139840000,-500.0,0.00012548,2]
[426080345,1782139840000,-180.41387865,0.00012799,2]
[426080335,1782139840000,-256.76793637,0.00012507,2]
[426080334,1782139840000,-151.0,0.00012507,2]
[426080336,1782139840000,-250.0,0.00012547,2]
[426080339,1782139840000,-255.0,0.00012634,2]
[426080338,1782139840000,-378.32,0.0001261,2]
[426080342,1782139840000,-151.80211929,0.00012786,2]
[426080343,1782139840000,-151.8021193,0.00012786,2]
[426080341,1782139840000,-155.77,0.00012761,2]
[426080324,1782139840000,-151.8021193,0.00012329,2]
[426080346,1782139840000,-7634.55583651,0.00012801,2]
[426080344,1782139840000,-151.29119052,0.00012799,2]
[426080322,1782139840000,-150.00000001,0.00012329,2]
[426080307,1782139840000,-247.299192,0.00012212,2]
[426080315,1782139840000,-282.49755172,0.0001222,2]
[426080349,1782139840000,-1320.55041628,0.00013198,7]
[426080298,1782139840000,-500.0,0.00012212,2]
[426080299,1782139840000,-500.0,0.00012212,2]
[426080300,1782139840000,-500.0,0.00012212,2]
[426080301,1782139840000,-500.0,0.00012212,2]
[426080304,1782139840000,-247.299192,0.00012212,2]
[426080303,1782139840000,-247.299192,0.00012212,2]
[426080302,1782139840000,-480.229655,0.00012212,2]
[426080305,1782139840000,-247.299192,0.00012212,2]
[426080306,1782139840000,-247.299192,0.00012212,2]
[426080317,1782139840000,-155.53293,0.0001222,2]
[426080309,1782139840000,-247.299192,0.00012212,2]
[426080311,1782139840000,-717.08679943,0.00012219,2]
[426080321,1782139840000,-191.35,0.00012329,2]
[426080312,1782139840000,-150.0,0.00012219,2]
[426080310,1782139840000,-247.299183,0.00012212,2]
[426080313,1782139840000,-177.73769565,0.00012219,2]
[426080314,1782139840000,-151.0,0.0001222,2]
[426080318,1782139840000,-160.0,0.0001223,2]
[426080319,1782139840000,-216.35787048,0.0001223,2]
[426080316,1782139840000,-1320.55041628,0.0001222,7]
[426080320,1782139840000,-646.43,0.00012241,2]
[426080308,1782139840000,-247.299192,0.00012212,2]
[426080348,1782139840000,-150.0,0.00012987,2]
[426080340,1782139840000,-166.67,0.00012761,2]
[426080357,1782139840000,-880.74763913,0.000135,2]
[426080386,1782139840000,-500.0,0.00013698,2]
[426080390,1782139840000,-500.0,0.00013698,2]
[426080392,1782139840000,-500.0,0.00013698,2]
[426080394,1782139840000,-500.0,0.00013698,2]
[426080403,1782139840000,-500.0,0.00013698,2]
[426080398,1782139840000,-500.0,0.00013698,2]
[426080401,1782139840000,-500.0,0.00013698,2]
[426080396,1782139840000,-500.0,0.00013698,2]
[426080405,1782139840000,-500.0,0.00013698,2]
[426080407,1782139840000,-500.0,0.00013698,2]
[426080418,1782139840000,-500.0,0.00013698,2]
[426080416,1782139840000,-500.0,0.00013698,2]
[426080419,1782139840000,-500.0,0.00013698,2]
[426080427,1782139840000,-500.0,0.00013698,2]
[426080428,1782139840000,-500.0,0.00013698,2]
[426080421,1782139840000,-186.16524823,0.00013698,2]
[426080422,1782139840000,-500.0,0.00013698,2]
[426080420,1782139840000,-500.0,0.00013698,2]
[426080423,1782139840000,-500.0,0.00013698,2]
[426080426,1782139840000,-500.0,0.00013698,2]
[426080425,1782139840000,-500.0,0.00013698,2]
[426080424,1782139840000,-250.25704712,0.00013698,2]
[426080354,1782139840000,-5524.0,0.00013464,5]
[426080388,1782139840000,-500.0,0.00013698,2]
[426080379,1782139840000,-500.0,0.00013698,2]
[426080417,1782139840000,-500.0,0.00013698,2]
[426080382,1782139840000,-508.87990619,0.00013698,2]
[426080355,1782139840000,-151.0,0.00013473,2]
[426080377,1782139840000,-500.0,0.00013698,2]
[426080353,1782139840000,-6223.0,0.00013464,5]
[426080350,1782139840000,-907.48,0.00013336,2]
[426080347,1782139840000,-1320.55041628,0.00012831,7]
[426080356,1782139840000,-176.57770237,0.000135,2]
[426080352,1782139840000,-2489.0,0.00013424,5]
[426080359,1782139840000,-1320.5504163,0.00013686,7]
[426080369,1782139840000,-500.0,0.00013698,2]
[426080360,1782139840000,-500.32037112,0.00013698,2]
[426080361,1782139840000,-500.910933,0.00013698,2]
[426080351,1782139840000,-212.539835,0.00013424,2]
[426080371,1782139840000,-500.0,0.00013698,2]
[426080373,1782139840000,-500.0,0.00013698,2]
[426080358,1782139840000,-3259.12391353,0.00013597,2]
[426080375,1782139840000,-500.0,0.00013698,2]
[426080366,1782139840000,-500.0,0.00013698,2]
[426080364,1782139840000,-500.0,0.00013698,2]
[426080384,1782139840000,-500.0,0.00013698,2]
[426080365,1782139840000,-209.27162967,0.00013698,2]
[426080367,1782139840000,-500.0,0.00013698,2]
[426080363,1782139840000,-500.0,0.00013698,2]
[426080362,1782139840000,-500.0,0.00013698,2]
[426080462,1782139841000,-888.6,0.00013698,2]
[426080474,1782139841000,-151.0,0.00013699,2]
[426080475,1782139841000,-151.0,0.00013699,2]
[426080464,1782139841000,-888.6,0.00013698,2]
[426080473,1782139841000,-200.0,0.00013699,2]
[426080470,1782139841000,-888.6,0.00013698,2]
[426080463,1782139841000,-888.6,0.00013698,2]
[426080466,1782139841000,-888.6,0.00013698,2]
[426080467,1782139841000,-888.6,0.00013698,2]
[426080461,1782139841000,-888.6,0.00013698,2]
[426080457,1782139841000,-888.6,0.00013698,2]
[426080471,1782139841000,-888.6,0.00013698,2]
[426080465,1782139841000,-888.6,0.00013698,2]
[426080476,1782139841000,-151.0,0.00013699,2]
[426080483,1782139841000,-620.45,0.000137,2]
[426080478,1782139841000,-151.0,0.00013699,2]
[426080479,1782139841000,-151.0,0.00013699,2]
[426080482,1782139841000,-350.0,0.00013699,2]
[426080477,1782139841000,-151.0,0.00013699,2]
[426080481,1782139841000,-237.50529,0.00013699,2]
[426080480,1782139841000,-151.0,0.00013699,2]
[426080484,1782139841000,-502.0,0.00013726,2]
[426080494,1782139841000,-500.0,0.00014219,2]
[426080495,1782139841000,-899.114199,0.00014285,2]
[426080485,1782139841000,-500.0,0.00013726,2]
[426080493,1782139841000,-166.67,0.0001421,2]
[426080492,1782139841000,-837.66127004,0.000142,2]
[426080460,1782139841000,-888.6,0.00013698,2]
[426080472,1782139841000,-888.6,0.00013698,2]
[426080469,1782139841000,-888.6,0.00013698,2]
[426080439,1782139841000,-500.0,0.00013698,2]
[426080468,1782139841000,-888.6,0.00013698,2]
[426080486,1782139841000,-433.0,0.00013791,2]
[426080429,1782139841000,-500.0,0.00013698,2]
[426080430,1782139841000,-500.0,0.00013698,2]
[426080436,1782139841000,-500.0,0.00013698,2]
[426080435,1782139841000,-500.0,0.00013698,2]
[426080437,1782139841000,-500.0,0.00013698,2]
[426080434,1782139841000,-500.0,0.00013698,2]
[426080433,1782139841000,-500.0,0.00013698,2]
[426080440,1782139841000,-500.0,0.00013698,2]
[426080441,1782139841000,-500.0,0.00013698,2]
[426080442,1782139841000,-500.0,0.00013698,2]
[426080431,1782139841000,-500.0,0.00013698,2]
[426080438,1782139841000,-500.0,0.00013698,2]
[426080432,1782139841000,-500.0,0.00013698,2]
[426080443,1782139841000,-500.0,0.00013698,2]
[426080446,1782139841000,-500.0,0.00013698,2]
[426080452,1782139841000,-888.6,0.00013698,2]
[426080448,1782139841000,-475.8556015,0.00013698,2]
[426080451,1782139841000,-888.6,0.00013698,2]
[426080444,1782139841000,-500.0,0.00013698,2]
[426080449,1782139841000,-888.6,0.00013698,2]
[426080445,1782139841000,-500.0,0.00013698,2]
[426080450,1782139841000,-888.6,0.00013698,2]
[426080447,1782139841000,-500.0,0.00013698,2]
[426080456,1782139841000,-888.6,0.00013698,2]
[426080454,1782139841000,-888.6,0.00013698,2]
[426080453,1782139841000,-888.6,0.00013698,2]
[426080455,1782139841000,-888.6,0.00013698,2]
[426080458,1782139841000,-888.6,0.00013698,2]
[426080459,1782139841000,-888.6,0.00013698,2]
[426080491,1782139841000,-988.39903723,0.000142,2]
[426080490,1782139841000,-378.32,0.00014012,2]
[426080489,1782139841000,-250.0,0.00014,2]
[426080526,1782139841000,-151.0,0.00015068,2]
[426080530,1782139841000,-151.0,0.00015068,2]
[426080533,1782139841000,-170.0,0.00015169,2]
[426080522,1782139841000,-150.0,0.00015068,2]
[426080531,1782139841000,-173.283087,0.00015068,2]
[426080534,1782139841000,-170.0,0.00015169,2]
[426080529,1782139841000,-151.0,0.00015068,2]
[426080532,1782139841000,-900.0,0.00015068,2]
[426080525,1782139841000,-151.0,0.00015068,2]
[426080548,1782139841000,-907.48,0.00016004,2]
[426080537,1782139841000,-153.54,0.0001544,2]
[426080547,1782139841000,-211.14775444,0.00016,2]
[426080540,1782139841000,-350.0,0.00015739,2]
[426080527,1782139841000,-151.0,0.00015068,2]
[426080542,1782139841000,-2279.22811866,0.00015807,2]
[426080536,1782139841000,-378.32,0.00015413,2]
[426080538,1782139841000,-1070.19,0.00015593,2]
[426080539,1782139841000,-620.45,0.000157,2]
[426080541,1782139841000,-449.45,0.00015777,2]
[426080545,1782139841000,-151.28419525,0.00016,2]
[426080544,1782139841000,-150.0,0.00016,2]
[426080546,1782139841000,-300.0,0.00016,2]
[426080551,1782139841000,-211.14775444,0.000161,2]
[426080552,1782139841000,-9999.99,0.00016116,2]
[426080553,1782139841000,-553.53536487,0.00016229,2]
[426080550,1782139841000,-176.90076653,0.00016024,2]
[426080555,1782139841000,-478.0,0.00016438,2]
[426080488,1782139841000,-1732.37733862,0.0001399,2]
[426080543,1782139841000,-1500.0,0.00015975,2]
[426080524,1782139841000,-151.0,0.00015068,2]
[426080549,1782139841000,-553.53536487,0.00016007,2]
[426080523,1782139841000,-151.0,0.00015068,2]
[426080535,1782139841000,-10000.0,0.00015209,2]
[426080487,1782139841000,-166.66,0.00013845,2]
[426080554,1782139841000,-283.0,0.00016438,2]
[426080498,1782139841000,-302.46,0.00014321,2]
[426080496,1782139841000,-150.0,0.00014321,2]
[426080497,1782139841000,-213.0,0.00014321,2]
[426080504,1782139841000,-5800.0,0.00014815,2]
[426080502,1782139841000,-907.48,0.0001467,2]
[426080505,1782139841000,-5800.0,0.00014823,2]
[426080499,1782139841000,-346.98541097,0.00014321,2]
[426080500,1782139841000,-1000.0,0.00014388,2]
[426080501,1782139841000,-166.66,0.00014532,2]
[426080506,1782139841000,-5800.0,0.00014832,2]
[426080503,1782139841000,-5800.0,0.00014806,2]
[426080507,1782139841000,-5800.0,0.00014841,2]
[426080508,1782139841000,-5800.0,0.00014849,2]
[426080509,1782139841000,-5800.0,0.00014858,2]
[426080517,1782139841000,-4000.0,0.00015,2]
[426080515,1782139841000,-1808633.15763114,0.00015,2]
[426080518,1782139841000,-1000.0,0.00015,2]
[426080511,1782139841000,-200.0,0.0001488,2]
[426080510,1782139841000,-5800.0,0.00014866,2]
[426080516,1782139841000,-1020.0,0.00015,2]
[426080528,1782139841000,-151.0,0.00015068,2]
[426080514,1782139841000,-878838.67447145,0.00015,2]
[426080512,1782139841000,-2788.61806908,0.000149,2]
[426080520,1782139841000,-477.0,0.00015014,2]
[426080513,1782139841000,-1100.0,0.000149,5]
[426080519,1782139841000,-160.58523776,0.00015,10]
[426080521,1782139841000,-736.0,0.00015064,2]
[426080591,1782139842000,-831.96008511,0.00016438,2]
[426080590,1782139842000,-831.96008511,0.00016438,2]
[426080589,1782139842000,-831.96008511,0.00016438,2]
[426080587,1782139842000,-831.96008511,0.00016438,2]
[426080583,1782139842000,-831.96008511,0.00016438,2]
[426080586,1782139842000,-831.96008511,0.00016438,2]
[426080592,1782139842000,-831.96008511,0.00016438,2]
[426080588,1782139842000,-831.96008511,0.00016438,2]
[426080584,1782139842000,-831.96008511,0.00016438,2]
[426080585,1782139842000,-831.96008511,0.00016438,2]
[426080596,1782139842000,-831.96008511,0.00016438,2]
[426080599,1782139842000,-831.96008511,0.00016438,2]
[426080600,1782139842000,-831.96008511,0.00016438,2]
[426080602,1782139842000,-831.96008511,0.00016438,2]
[426080604,1782139842000,-831.96008511,0.00016438,2]
[426080594,1782139842000,-831.96008511,0.00016438,2]
[426080595,1782139842000,-831.96008511,0.00016438,2]
[426080597,1782139842000,-831.96008511,0.00016438,2]
[426080598,1782139842000,-831.96008511,0.00016438,2]
[426080576,1782139842000,-831.96008511,0.00016438,2]
[426080607,1782139842000,-831.96008511,0.00016438,2]
[426080593,1782139842000,-831.96008511,0.00016438,2]
[426080581,1782139842000,-831.96008511,0.00016438,2]
[426080566,1782139842000,-831.96008511,0.00016438,2]
[426080574,1782139842000,-831.96008511,0.00016438,2]
[426080606,1782139842000,-831.96008511,0.00016438,2]
[426080557,1782139842000,-831.96008511,0.00016438,2]
[426080556,1782139842000,-714.6,0.00016438,2]
[426080558,1782139842000,-831.96008511,0.00016438,2]
[426080559,1782139842000,-831.96008511,0.00016438,2]
[426080560,1782139842000,-831.96008511,0.00016438,2]
[426080561,1782139842000,-831.96008511,0.00016438,2]
[426080563,1782139842000,-831.96008511,0.00016438,2]
[426080565,1782139842000,-831.96008511,0.00016438,2]
[426080564,1782139842000,-831.96008511,0.00016438,2]
[426080562,1782139842000,-831.96008511,0.00016438,2]
[426080567,1782139842000,-831.96008511,0.00016438,2]
[426080568,1782139842000,-831.96008511,0.00016438,2]
[426080569,1782139842000,-831.96008511,0.00016438,2]
[426080571,1782139842000,-831.96008511,0.00016438,2]
[426080570,1782139842000,-831.96008511,0.00016438,2]
[426080573,1782139842000,-831.96008511,0.00016438,2]
[426080577,1782139842000,-831.96008511,0.00016438,2]
[426080572,1782139842000,-831.96008511,0.00016438,2]
[426080579,1782139842000,-831.96008511,0.00016438,2]
[426080580,1782139842000,-831.96008511,0.00016438,2]
[426080578,1782139842000,-831.96008511,0.00016438,2]
[426080575,1782139842000,-831.96008511,0.00016438,2]
[426080582,1782139842000,-831.96008511,0.00016438,2]
[426080608,1782139842000,-831.96008511,0.00016438,2]
[426080616,1782139842000,-831.96008511,0.00016438,2]
[426080614,1782139842000,-831.96008511,0.00016438,2]
[426080641,1782139842000,-2467.98850596,0.00016438,2]
[426080644,1782139842000,-2467.98850596,0.00016438,2]
[426080640,1782139842000,-2467.98850596,0.00016438,2]
[426080639,1782139842000,-2467.98850596,0.00016438,2]
[426080646,1782139842000,-2467.98850596,0.00016438,2]
[426080656,1782139842000,-900.0,0.00016438,2]
[426080654,1782139842000,-151.0,0.00016438,2]
[426080652,1782139842000,-2467.98850588,0.00016438,2]
[426080648,1782139842000,-2467.98850596,0.00016438,2]
[426080649,1782139842000,-2467.98850596,0.00016438,2]
[426080637,1782139842000,-2467.98850596,0.00016438,2]
[426080647,1782139842000,-2467.98850596,0.00016438,2]
[426080651,1782139842000,-2467.98850596,0.00016438,2]
[426080650,1782139842000,-2467.98850596,0.00016438,2]
[426080645,1782139842000,-2467.98850596,0.00016438,2]
[426080658,1782139842000,-151.0,0.00016438,2]
[426080657,1782139842000,-151.0,0.00016438,2]
[426080662,1782139842000,-1555.5,0.00016523,2]
[426080660,1782139842000,-1252.0,0.00016453,2]
[426080661,1782139842000,-1000.0,0.000165,2]
[426080659,1782139842000,-151.0,0.00016438,2]
[426080618,1782139842000,-831.96008511,0.00016438,2]
[426080655,1782139842000,-158.29196,0.00016438,2]
[426080642,1782139842000,-2467.98850596,0.00016438,2]
[426080653,1782139842000,-302.96,0.00016438,2]
[426080635,1782139842000,-2467.98850596,0.00016438,2]
[426080643,1782139842000,-2467.98850596,0.00016438,2]
[426080611,1782139842000,-831.96008511,0.00016438,2]
[426080615,1782139842000,-831.96008511,0.00016438,2]
[426080609,1782139842000,-831.96008511,0.00016438,2]
[426080610,1782139842000,-831.96008511,0.00016438,2]
[426080613,1782139842000,-831.96008511,0.00016438,2]
[426080617,1782139842000,-831.96008511,0.00016438,2]
[426080630,1782139842000,-2467.98850596,0.00016438,2]
[426080629,1782139842000,-2467.98850596,0.00016438,2]
[426080619,1782139842000,-831.96008511,0.00016438,2]
[426080631,1782139842000,-2467.98850596,0.00016438,2]
[426080612,1782139842000,-831.96008511,0.00016438,2]
[426080620,1782139842000,-831.96008511,0.00016438,2]
[426080621,1782139842000,-831.96008511,0.00016438,2]
[426080634,1782139842000,-2467.98850596,0.00016438,2]
[426080632,1782139842000,-2467.98850596,0.00016438,2]
[426080627,1782139842000,-2467.98850596,0.00016438,2]
[426080626,1782139842000,-2467.98850596,0.00016438,2]
[426080633,1782139842000,-2467.98850596,0.00016438,2]
[426080625,1782139842000,-2467.98850596,0.00016438,2]
[426080624,1782139842000,-2467.98850596,0.00016438,2]
[426080623,1782139842000,-2467.98850596,0.00016438,2]
[426080622,1782139842000,-2467.98850596,0.00016438,2]
[426080695,1782139843000,-269.67,0.00018143,2]
[426080689,1782139843000,-1211.47984522,0.00018,2]
[426080691,1782139843000,-350.0,0.00018,2]
[426080693,1782139843000,-1807.87330709,0.000181,2]
[426080692,1782139843000,-283.0,0.00018082,2]
[426080696,1782139843000,-1734.62772924,0.00018167,2]
[426080688,1782139843000,-111218.22954958,0.00018,2]
[426080694,1782139843000,-204.4,0.000181,2]
[426080700,1782139843000,-327.50272081,0.000182,2]
[426080699,1782139843000,-400.0,0.000182,2]
[426080703,1782139843000,-1120.45016247,0.000184,2]
[426080702,1782139843000,-204.4,0.000183,2]
[426080697,1782139843000,-1120.45016247,0.000182,2]
[426080698,1782139843000,-204.4,0.000182,2]
[426080704,1782139843000,-400.0,0.000184,2]
[426080705,1782139843000,-327.50272081,0.000184,2]
[426080707,1782139843000,-231.4957237,0.000184,2]
[426080706,1782139843000,-4110.03471729,0.000184,2]
[426080709,1782139843000,-231.4957237,0.000184,2]
[426080713,1782139843000,-3561.0,0.00018542,2]
[426080690,1782139843000,-1553.87604182,0.00018,2]
[426080701,1782139843000,-4110.03471729,0.000182,2]
[426080686,1782139843000,-938.83221879,0.0001789,2]
[426080708,1782139843000,-231.4957237,0.000184,2]
[426080685,1782139843000,-5758.46065051,0.00017853,2]
[426080668,1782139843000,-5758.46065051,0.00016806,2]
[426080663,1782139843000,-2000.0,0.00016652,2]
[426080665,1782139843000,-316.1089606,0.00016731,2]
[426080666,1782139843000,-2142.9787457,0.00016796,2]
[426080667,1782139843000,-193.0,0.000168,3]
[426080664,1782139843000,-500.0,0.00016652,2]
[426080669,1782139843000,-378.32,0.00016814,2]
[426080670,1782139843000,-19999.99,0.00016922,2]
[426080676,1782139843000,-478.0,0.0001726,2]
[426080672,1782139843000,-24306.32,0.00016922,2]
[426080687,1782139843000,-2129.0,0.00017968,2]
[426080673,1782139843000,-1173.4454132,0.00017,2]
[426080674,1782139843000,-1613.0535,0.00017071,2]
[426080671,1782139843000,-9999.99,0.00016922,2]
[426080675,1782139843000,-283.0,0.0001726,2]
[426080678,1782139843000,-6423.6580721,0.00017504,2]
[426080677,1782139843000,-319.1327312,0.000175,2]
[426080681,1782139843000,-350.0,0.00017665,2]
[426080680,1782139843000,-1672.7364795,0.00017619,2]
[426080683,1782139843000,-795.6531619,0.000177,2]
[426080684,1782139843000,-620.45,0.000177,2]
[426080682,1782139843000,-500.0,0.00017671,2]
[426080679,1782139843000,-156.58,0.00017556,2]
[426080711,1782139843000,-153.54,0.00018528,2]
[426080717,1782139843000,-150.0,0.00018542,2]
[426080710,1782139843000,-714.6,0.0001841,2]
[426080759,1782139843000,-2405.77868364,0.00019,2]
[426080764,1782139843000,-1142.49758299,0.00019,2]
[426080770,1782139843000,-151.0,0.00019178,2]
[426080767,1782139843000,-181.85,0.00019168,7]
[426080749,1782139843000,-400.0,0.00019,2]
[426080757,1782139843000,-363268.01509672,0.00019,2]
[426080754,1782139843000,-4110.03471729,0.00019,2]
[426080752,1782139843000,-327.50272081,0.00019,2]
[426080774,1782139843000,-169.261806,0.00019178,2]
[426080772,1782139843000,-151.0,0.00019178,2]
[426080776,1782139843000,-4110.03471729,0.000192,2]
[426080782,1782139843000,-672.63697964,0.00019399,2]
[426080779,1782139843000,-1865.36488656,0.00019263,2]
[426080777,1782139843000,-39935.0,0.000192,2]
[426080784,1782139843000,-620.45,0.000194,2]
[426080780,1782139843000,-4110.03471729,0.000193,2]
[426080781,1782139843000,-300.0,0.00019399,2]
[426080786,1782139843000,-162.0,0.00019452,2]
[426080785,1782139843000,-251.0,0.00019452,2]
[426080788,1782139843000,-500.0,0.00019462,2]
[426080712,1782139843000,-183.5,0.00018529,2]
[426080762,1782139843000,-154.0,0.00019,2]
[426080747,1782139843000,-1120.45016247,0.00019,2]
[426080783,1782139843000,-265616.47475379,0.000194,2]
[426080742,1782139843000,-5254.35568084,0.00019,2]
[426080744,1782139843000,-160.0,0.00019,2]
[426080714,1782139843000,-1279.283,0.00018542,2]
[426080716,1782139843000,-1368.605,0.00018542,2]
[426080715,1782139843000,-1229.25,0.00018542,2]
[426080720,1782139843000,-150.0,0.00018542,2]
[426080787,1782139843000,-429.70900624,0.00019462,2]
[426080719,1782139843000,-167.235,0.00018542,2]
[426080721,1782139843000,-150.257,0.00018542,2]
[426080722,1782139843000,-1611.44,0.00018566,2]
[426080724,1782139843000,-3719.48,0.00018566,2]
[426080725,1782139843000,-1120.45016247,0.000186,2]
[426080718,1782139843000,-150.365,0.00018542,2]
[426080730,1782139843000,-1120.45016247,0.000188,2]
[426080728,1782139843000,-4110.03471729,0.000186,2]
[426080739,1782139843000,-184.201689,0.00018904,2]
[426080737,1782139843000,-5758.46065051,0.000189,2]
[426080731,1782139843000,-400.0,0.000188,2]
[426080734,1782139843000,-4110.03471729,0.000188,2]
[426080729,1782139843000,-1798.80895522,0.00018715,2]
[426080727,1782139843000,-327.50272081,0.000186,2]
[426080723,1782139843000,-901.4,0.00018566,2]
[426080726,1782139843000,-400.0,0.000186,2]
[426080732,1782139843000,-327.50272081,0.000188,2]
[426080809,1782139844000,-2000.0,0.0002,7]
[426080816,1782139844000,-752.4937536,0.0002,2]
[426080810,1782139844000,-400.0,0.0002,2]
[426080812,1782139844000,-173.0,0.0002,2]